bitfinex/quotes_ETHUSD_20250529
["timestamp","ask_amount","ask_price","bid_price","bid_amount"]
[1748493911148,3.67346862,2722.3,2721.1,8.0]
[1748493911444,4.65,2723.0,2721.1,8.0]
[1748493911445,0.9319,2722.8,2721.5,3.67444424]
[1748493911647,3.6726131,2722.9,2720.5,0.514]
[1748493911802,3.67390425,2721.9,2720.5,0.514]
[1748493912005,4.60612082,2721.7,2720.5,3.67574315]
[1748493912260,3.67430922,2721.6,2720.5,8.0]
[1748493912416,3.67457926,2721.4,2719.9,0.9156]
[1748493912742,4.60758156,2720.6,2720.0,0.30690537]
[1748493913042,0.9319,2720.6,2720.0,0.30690537]
[1748493913342,3.67591935,2720.5,2720.0,0.30690537]
[1748493913560,0.9319,2720.6,2720.1,3.67624861]
[1748493913765,0.9319,2720.6,2720.1,0.30689408]
[1748493913916,3.67620027,2720.2,2720.1,0.30689408]
[1748493914115,9.26310027,2720.2,2720.1,0.30689408]
[1748493914416,9.26310027,2720.2,2717.8,0.9156]
[1748493914417,3.67774265,2719.1,2717.8,0.9156]
[1748493914615,5.4739521,2720.4,2718.2,3.67889972]
[1748493914616,3.67797578,2718.9,2718.2,3.67889972]
[1748493914832,0.9319,2719.0,2718.2,0.3071086]
[1748493915041,1.79802209,2720.4,2717.8,0.9156]
[1748493915042,3.67702941,2719.6,2718.3,0.3070973]
[1748493915253,12.22576808,2720.6,2718.3,0.70570289]
[1748493915254,0.9494,2719.5,2718.3,0.70570289]
[1748493915454,0.9494,2719.5,2719.2,3.67749222]
[1748493915627,3.67607983,2720.3,2719.6,3.67695373]
[1748493915628,0.9494,2720.3,2719.6,3.67695373]
[1748493915952,0.9494,2720.3,2719.0,9.0145]
[1748493916262,0.9494,2720.3,2718.9,5.22491833]
[1748493916263,0.9494,2720.3,2718.9,3.67789385]
[1748493916412,3.67688666,2719.7,2718.9,3.67792567]
[1748493916612,0.9494,2719.4,2718.3,0.3070973]
[1748493917022,5.6184,2719.4,2718.7,3.67809732]
[1748493917297,5.6184,2719.4,2718.3,0.3070973]
[1748493917553,0.9494,2719.4,2718.5,1.0145]
[1748493917963,3.67540589,2720.8,2718.5,1.0145]
[1748493917964,0.9494,2720.0,2718.6,1.79802209]
[1748493918116,0.9494,2720.0,2719.9,3.67660575]
[1748493918317,0.9494,2720.8,2719.9,3.67652939]
[1748493918512,0.9494,2720.8,2719.9,3.67660575]
[1748493918755,0.9494,2720.8,2719.5,4.70953385]
[1748493918756,3.67592941,2720.5,2719.5,4.70953385]
[1748493919050,0.9494,2720.8,2719.1,3.67763587]
[1748493919051,4.04356468,2720.4,2719.6,3.67690303]
[1748493919253,0.36759294,2720.4,2719.5,3.67708971]
[1748493919466,1.0155,2720.2,2719.6,3.67699385]
[1748493919750,1.0155,2720.2,2719.1,1.0325]
[1748493919948,4.69171587,2720.2,2719.1,8.0]
[1748493920152,1.88902407,2720.2,2719.6,3.67689335]
[1748493920353,1.0155,2720.2,2719.6,3.67700069]
[1748493920556,1.0155,2720.2,2718.7,3.0983]
[1748493920770,4.69174004,2720.2,2719.6,3.67700949]
[1748493920947,1.0155,2720.2,2719.2,8.0]
[1748493921161,0.5,2720.6,2720.0,3.67638299]
[1748493921349,1.0165,2720.6,2719.3,1.0373]
[1748493921548,1.0165,2720.6,2719.4,3.67723198]
[1748493921549,3.67632253,2720.2,2719.4,3.67723198]
[1748493921748,3.67606513,2720.3,2718.6,0.514]
[1748493921954,3.67633542,2720.1,2718.6,3.67836386]
[1748493922129,3.67693379,2719.7,2718.5,3.67849917]
[1748493922477,0.9787,2719.8,2718.3,1.0373]
[1748493922632,4.662,2719.7,2718.3,1.0373]
[1748493922832,4.662,2719.7,2717.9,0.9475]
[1748493922833,1.0162,2719.5,2717.9,0.9475]
[1748493923035,3.67738892,2719.4,2718.0,3.67917586]
[1748493923286,1.0162,2719.5,2717.9,0.9475]
[1748493923598,1.0162,2719.5,2718.4,8.0]
[1748493923798,1.0162,2719.5,2718.9,3.67791998]
[1748493924008,1.0162,2719.5,2718.7,3.67822093]
[1748493924310,4.69338341,2719.5,2718.0,3.67917586]
[1748493924487,3.67780856,2719.1,2718.0,3.67917586]
[1748493924651,3.67780856,2719.1,2717.5,7.929]
[1748493924652,3.67741698,2719.3,2717.5,7.929]
[1748493924957,4.655,2719.4,2717.5,7.929]
[1748493924958,3.67829404,2718.7,2717.9,3.6791901]
[1748493925147,4.69640107,2718.8,2717.8,3.67941971]
[1748493925345,1.0183,2718.8,2718.2,3.67890334]
[1748493925547,3.67824226,2718.7,2717.3,3.67999999]
[1748493925776,1.0183,2718.8,2717.2,11.150963]
[1748493925976,1.0183,2718.8,2717.3,1.21456831]
[1748493926183,1.0183,2718.8,2717.3,8.0]
[1748493926348,1.0183,2718.8,2718.1,3.67894201]
[1748493926559,3.67824067,2718.7,2717.9,3.67920094]
[1748493926894,1.0183,2718.8,2717.3,8.0]
[1748493927101,1.0183,2719.7,2717.8,0.9786]
[1748493927402,1.0183,2719.1,2717.9,3.67931123]
[1748493927689,1.0183,2719.1,2718.0,3.67906949]
[1748493927889,1.0183,2718.4,2717.7,3.67946989]
[1748493928092,1.0183,2718.4,2717.7,3.67948792]
[1748493928290,1.0183,2718.4,2717.7,0.36794879]
[1748493928490,1.0183,2718.7,2717.8,3.67944661]
[1748493928691,1.0183,2718.7,2718.1,3.67899628]
[1748493928851,1.0183,2719.1,2717.9,8.0]
[1748493929051,3.67779182,2719.1,2717.7,8.99244682]
[1748493929255,4.70086306,2715.5,2714.5,0.01961532]
[1748493929494,4.70086306,2715.5,2713.7,10.0]
[1748493929856,4.70086306,2715.5,2713.0,0.32710255]
[1748493929857,9.69786306,2715.5,2715.4,3.07423636]
[1748493930054,9.69786306,2715.5,2714.1,1.21370846]
[1748493930055,3.68432687,2714.2,2714.1,1.21370846]
[1748493930400,4.68782687,2714.2,2714.1,1.52128099]
[1748493930552,3.68459837,2714.0,2713.0,0.32710255]
[1748493930753,3.68582064,2713.1,2713.0,0.32710255]
[1748493930993,5.022,2714.3,2713.0,0.32710255]
[1748493931197,0.55,2713.9,2713.0,0.32710255]
[1748493931402,5.022,2714.3,2713.0,0.32710255]
[1748493931403,0.55,2714.1,2713.0,0.32710255]
[1748493931707,0.5516,2714.1,2713.0,0.32710255]
[1748493931864,3.68541762,2713.4,2713.0,0.32710255]
[1748493932051,3.68467901,2714.0,2713.0,0.32710255]
[1748493932253,0.5516,2714.1,2713.0,0.32710255]
[1748493932501,1.827,2715.5,2713.0,0.32710255]
[1748493932502,3.68305193,2715.2,2713.0,0.32710255]
[1748493932653,0.30390929,2714.0,2713.1,1.827]
[1748493932854,0.30390929,2714.0,2713.0,0.32710255]
[1748493933255,0.30390929,2714.0,2711.8,8.11699769]
[1748493933256,3.6874516,2711.9,2711.8,8.11699769]
[1748493933499,3.6874516,2711.9,2708.5,12.07816804]
[1748493933500,4.422892,2710.7,2708.5,12.07816804]
[1748493933905,3.68962845,2710.3,2708.5,12.07816804]
[1748493934103,3.68962845,2710.3,2708.6,1.2078168]
[1748493934104,0.55,2710.2,2708.6,1.2078168]
[1748493934720,0.3722045,2711.0,2708.6,1.2078168]
[1748493934721,0.55,2711.7,2708.7,3.42819]
[1748493934925,0.55,2711.7,2708.6,11.2078168]
[1748493934926,3.68813159,2711.4,2708.6,11.2078168]
[1748493935223,0.733808,2711.2,2708.8,10.9836]
[1748493935355,0.30390929,2711.1,2709.0,13.559714]
[1748493935555,0.30390929,2711.1,2709.6,14.951724]
[1748493935786,0.232,2712.5,2711.5,0.9836]
[1748493935955,0.232,2712.5,2710.6,0.9836]
[1748493936156,0.232,2712.5,2711.3,2.57798]
[1748493936379,0.232,2712.5,2711.5,1.79802209]
[1748493936777,0.232,2712.5,2711.0,0.55]
[1748493937122,3.68720036,2712.1,2710.7,3.69638209]
[1748493937405,0.232,2712.5,2710.9,10.0]
[1748493937591,0.232,2712.5,2710.6,0.9836]
[1748493937910,0.232,2712.5,2710.7,3.779695]
[1748493938060,0.232,2712.5,2709.8,6.004]
[1748493938061,0.343814,2709.3,2708.2,0.84862259]
[1748493938267,16.89986027,2710.6,2704.6,5.53097896]
[1748493938268,3.69658435,2705.2,2704.6,5.53097896]
[1748493938491,7.33979942,2705.2,2704.6,5.51136364]
[1748493938693,7.33979942,2705.2,2705.1,10.60240843]
[1748493938694,3.96106038,2705.2,2705.1,10.60240843]
[1748493939092,0.30390929,2705.2,2705.1,10.60240843]
[1748493939298,0.30390929,2705.2,2705.1,12.85792143]
[1748493939513,0.30390929,2705.2,2705.1,10.60240843]
[1748493940946,0.30390929,2705.2,2705.1,17.16132843]
[1748493941092,0.30390929,2705.2,2705.1,16.72922943]
[1748493941441,0.19111265,2706.9,2705.8,3.69566875]
[1748493941571,0.30390929,2706.8,2705.7,60.0]
[1748493941894,0.15716309,2706.9,2706.0,0.9785]
[1748493942070,0.15716309,2706.9,2706.4,10.0]
[1748493942273,0.15716309,2706.9,2706.2,8.0]
[1748493942505,0.15716309,2706.9,2706.1,7.963]
[1748493942506,0.05993738,2706.9,2706.8,1.81961898]
[1748493942768,0.05993738,2706.9,2706.8,16.26146928]
[1748493943056,8.0,2704.5,2699.9,3.49626061]
[1748493943256,3.69890882,2703.5,2699.9,3.49626061]
[1748493943413,3.69890882,2703.5,2703.4,2.36563361]
[1748493944438,0.17267617,2704.0,2703.4,2.36563361]
[1748493944642,2.517272,2703.9,2701.8,12.73243802]
[1748493944852,2.517272,2703.7,2701.8,12.73243802]
[1748493945125,0.273,2703.7,2701.9,5.363287]
[1748493945352,0.23605,2703.7,2702.1,10.0]
[1748493945665,3.7001737,2702.6,2701.8,12.73243802]
[1748493945874,3.69933882,2703.2,2702.0,10.0]
[1748493946182,3.70014292,2702.6,2701.8,12.73243802]
[1748493946469,3.70015208,2702.6,2701.8,12.73243802]
[1748493946675,7.55167617,2704.0,2701.8,12.73243802]
[1748493946676,2.517272,2703.7,2702.0,10.0]
[1748493946826,0.17267617,2704.0,2702.0,10.0]
[1748493946827,0.17267617,2704.0,2703.3,1.82265085]
[1748493947027,0.17267617,2704.0,2703.4,1.85964609]
[1748493947271,0.17267617,2704.0,2703.1,1.0251]
[1748493947475,0.17267617,2704.0,2703.2,2.370583]
[1748493947697,0.17267617,2704.0,2703.3,0.3395683]
[1748493947827,0.17267617,2704.0,2702.5,3.70027752]
[1748493948023,0.17267617,2704.0,2702.5,3.39743]
[1748493948273,0.17267617,2704.0,2702.4,8.0]
[1748493948562,3.69779607,2704.4,2702.5,1.03366509]
[1748493948750,3.9330371,2704.9,2701.9,4.97424273]
[1748493948751,0.236,2704.9,2701.9,11.2732438]
[1748493948953,0.236,2704.9,2702.2,11.962913]
[1748493949153,3.69842461,2703.9,2702.2,17.8]
[1748493949474,3.69864204,2703.7,2702.6,3.7001107]
[1748493949770,3.69757244,2704.5,2702.2,8.0]
[1748493949927,3.69757244,2704.5,2702.5,3.70027081]
[1748493949928,3.69902282,2703.5,2702.5,3.70027081]
[1748493950266,0.236,2703.3,2701.9,1.2732438]
[1748493950426,0.2,2703.1,2701.9,1.2732438]
[1748493950626,3.70015886,2702.6,2701.9,1.2732438]
[1748493950937,3.69931932,2703.2,2701.9,1.2732438]
[1748493951128,0.236,2703.3,2702.0,1.40056818]
[1748493951469,1.82265085,2704.6,2702.0,1.40056818]
[1748493951470,3.69781595,2704.3,2702.1,10.0]
[1748493951669,0.236,2704.9,2702.1,10.0]
[1748493951670,0.236,2704.9,2702.3,3.70055138]
[1748493951839,3.69797874,2704.2,2702.8,1.0059]
[1748493952040,0.236,2705.7,2703.7,3.6986352]
[1748493952244,0.236,2705.7,2704.2,6.019157]
[1748493952444,0.223,2707.4,2704.2,6.019157]
[1748493952445,0.236,2706.4,2705.0,3.69685767]
[1748493952659,0.4679,2707.3,2705.2,3.69658435]
[1748493952845,0.4679,2707.3,2705.3,2.37265085]
[1748493953176,10.98233102,2708.8,2705.3,2.37265085]
[1748493953177,1.82265085,2708.6,2705.7,0.55]
[1748493953332,0.4679,2708.1,2705.6,10.9685]
[1748493953643,0.4679,2708.1,2705.8,0.55]
[1748493953828,0.4679,2708.1,2706.5,3.69478286]
[1748493954034,0.4679,2708.1,2706.6,4.06408695]
[1748493954240,0.4679,2708.1,2706.6,0.36947829]
[1748493954444,0.4679,2708.1,2706.2,8.0]
[1748493954899,3.69289855,2707.9,2705.6,0.9685]
[1748493955073,0.4679,2708.1,2705.6,0.9685]
[1748493955074,3.69385342,2707.2,2705.6,0.9685]
[1748493955374,8.0,2707.0,2704.7,2.170094]
[1748493955672,0.4679,2707.7,2705.0,4.9655]
[1748493955673,3.6949827,2706.4,2705.0,4.9655]
[1748493955829,3.6949827,2706.4,2704.8,0.3177994]
[1748493955830,0.4679,2707.7,2705.9,3.69550397]
[1748493956029,7.385,2708.1,2705.9,3.69550397]
[1748493956030,8.0,2708.1,2705.9,0.55]
[1748493956260,8.0,2708.1,2705.3,8.0]
[1748493956261,3.69367527,2707.4,2705.4,4.24631108]
[1748493956581,3.69225453,2708.4,2704.8,2.14045025]
[1748493956582,5.51661646,2707.2,2705.5,1.22463111]
[1748493956877,11.69400134,2707.1,2704.8,0.3177994]
[1748493957086,0.2,2708.6,2705.6,1.0312]
[1748493957262,1.87650906,2710.4,2705.7,8.0]
[1748493957263,1.82265085,2708.7,2705.7,8.0]
[1748493957430,3.69208048,2708.5,2705.9,10.0]
[1748493957633,3.69395892,2707.2,2705.9,10.0]
[1748493957833,3.69395892,2707.2,2705.7,15.361]
[1748493957834,3.69262582,2708.1,2706.0,1.0]
[1748493958033,3.69262582,2708.1,2705.6,1.0312]
[1748493958034,3.69289855,2707.9,2705.6,1.0312]
[1748493958245,3.69418833,2707.0,2705.6,1.0312]
[1748493958471,3.69371698,2707.3,2705.6,1.0312]
[1748493958696,1.82265085,2707.6,2705.6,1.0312]
[1748493958697,7.385,2707.5,2705.6,1.0312]
[1748493959004,3.6951328,2706.3,2705.6,1.0312]
[1748493959215,15.385,2707.4,2705.6,1.0312]
[1748493959216,3.69526624,2706.2,2705.6,1.0312]
[1748493959352,2.046708,2707.0,2705.6,1.0312]
[1748493959691,3.69422791,2707.0,2705.6,1.0312]
[1748493959907,37.30786841,2712.4,2705.7,0.55]
[1748493959908,3.69302313,2707.9,2705.7,0.55]
[1748493960106,2.046708,2708.2,2705.7,0.55]
[1748493960396,2.046708,2708.2,2705.6,1.0312]
[1748493960397,2.046708,2707.8,2705.8,0.55]
[1748493960623,1.82265085,2706.6,2704.9,0.82261865]
[1748493960768,3.69685767,2705.0,2704.9,0.82261865]
[1748493961288,3.69685767,2705.0,2703.3,0.9565]
[1748493961289,2.046708,2705.0,2703.3,0.9565]
[1748493961493,8.0,2704.9,2703.3,0.9565]
[1748493961717,8.0,2705.2,2703.3,0.9565]
[1748493962011,3.69859914,2703.8,2703.3,0.9565]
[1748493962294,3.69734188,2704.7,2702.7,7.977]
[1748493962295,0.55,2704.7,2702.7,7.977]
[1748493962449,8.0,2705.4,2702.9,10.0]
[1748493962649,3.69703644,2704.9,2703.1,33.48804585]
[1748493962849,1.87215357,2707.8,2703.1,33.48804585]
[1748493962850,0.2,2708.3,2704.2,1.0361]
[1748493963085,0.53529648,2708.9,2704.0,5.46795255]
[1748493963086,3.69382893,2707.3,2704.9,12.389991]
[1748493963298,3.69289855,2707.9,2705.4,0.55]
[1748493963449,5.46795255,2708.0,2705.5,3.09726]
[1748493963653,3.69330772,2707.6,2705.5,0.0361]
[1748493963898,0.9644,2707.7,2706.2,3.69511681]
[1748493964077,0.9644,2707.7,2705.5,0.0361]
[1748493964078,3.69330772,2707.6,2706.1,3.69525389]
[1748493964267,3.69428882,2706.9,2706.0,3.69545393]
[1748493964454,3.69330772,2707.6,2706.1,0.36954539]
[1748493964795,0.9644,2707.7,2705.6,8.55]
[1748493964978,4.65761157,2707.7,2705.7,8.0]
[1748493965178,10.92901561,2709.6,2705.7,8.0]
[1748493965179,3.69244308,2708.3,2706.0,0.55]
[1748493965495,3.69244308,2708.3,2705.5,0.0361]
[1748493965496,1.82265085,2708.3,2705.2,3.69658435]
[1748493965695,10.0,2709.5,2705.2,3.69658435]
[1748493965696,4.69318646,2707.7,2705.5,0.55]
[1748493965897,1.0,2708.4,2706.1,3.69534328]
[1748493966225,3.69112653,2709.2,2707.0,3.69403319]
[1748493966419,3.69315274,2707.8,2706.8,3.69430236]
[1748493966713,3.69139904,2709.0,2706.8,3.69430236]
[1748493966714,3.69074343,2709.5,2707.0,0.55]
[1748493966922,3.69074343,2709.5,2707.2,3.69379974]
[1748493966923,3.69112653,2709.2,2707.2,3.69379974]
[1748493967066,3.69112653,2709.2,2707.1,1.07889631]
[1748493967273,3.69267371,2708.1,2706.9,0.55]
[1748493967586,1.82265085,2709.0,2706.8,0.9529]
[1748493967790,7.386,2709.2,2706.8,0.9529]
[1748493968105,1.82265085,2709.6,2706.8,0.9529]
[1748493968106,3.69167158,2708.8,2706.8,0.9529]
[1748493968285,3.69049547,2709.7,2707.2,0.55]
[1748493968493,3.69049547,2709.7,2706.8,0.9529]
[1748493968494,3.69112653,2709.2,2706.8,16.9299]
[1748493968654,3.69192031,2708.7,2707.7,3.69303545]
[1748493968859,3.69057807,2709.7,2707.4,8.0]
[1748493968860,3.69071784,2709.5,2707.4,8.0]
[1748493969160,2.76465085,2709.9,2707.1,0.55]
[1748493969161,3.69058163,2709.6,2707.7,3.69307862]
[1748493969387,3.69058163,2709.6,2707.3,0.55]
[1748493969388,0.9641,2711.2,2708.3,3.766492]
[1748493969565,3.69040082,2709.8,2708.8,3.69157371]
[1748493969766,3.68894791,2710.8,2708.7,8.0]
[1748493970083,3.68970604,2710.3,2708.8,3.69163322]
[1748493970283,1.82265085,2711.1,2708.9,6.728422]
[1748493970284,3.68860151,2711.1,2708.9,6.728422]
[1748493970598,3.68922009,2710.6,2709.1,3.69116791]
[1748493970781,3.68867576,2711.0,2709.3,3.69099029]
[1748493970985,3.68922905,2710.6,2709.7,3.69040165]
[1748493971168,3.68810691,2711.5,2709.5,3.690585]
[1748493971169,3.68810691,2711.5,2709.5,4.2406074]
[1748493971358,50.0,2712.4,2709.5,0.79314675]
[1748493971693,1.82265085,2711.3,2709.2,0.9335]
[1748493971896,0.9806,2711.4,2709.3,0.55]
[1748493972079,3.68882772,2710.9,2709.3,3.429945]
[1748493972281,3.68826762,2711.3,2709.4,0.55]
[1748493972457,0.9806,2711.4,2709.2,8.9335]
[1748493972458,3.68959564,2710.4,2709.3,0.55]
[1748493972655,3.68960899,2710.4,2709.3,0.55]
[1748493972854,0.9806,2711.4,2709.3,0.55]
[1748493972855,3.68741201,2712.0,2709.5,0.55]
[1748493973054,3.68741201,2712.0,2709.7,0.55]
[1748493973055,3.68731563,2712.0,2709.7,0.55]
[1748493973260,3.68867949,2711.0,2709.9,0.55]
[1748493973459,3.68772356,2711.7,2709.9,2.405]
[1748493973659,3.91869404,2712.5,2710.1,0.55]
[1748493973888,3.91869404,2712.5,2709.7,8.0]
[1748493973889,0.232,2712.5,2710.5,0.9508]
[1748493974406,0.232,2712.5,2710.4,0.55]
[1748493974407,0.232,2712.5,2711.6,1.82265085]
[1748493974558,0.232,2712.5,2711.7,1.1864]
[1748493974902,0.232,2712.5,2712.0,0.55]
[1748493975101,0.232,2712.5,2711.9,8.0]
[1748493975256,1.2789,2714.4,2712.5,1.7364]
[1748493975459,1.2789,2714.4,2712.5,1.1864]
[1748493975690,3.68606002,2713.0,2712.5,1.1864]
[1748493975887,3.68419113,2714.3,2712.5,1.1864]
[1748493976070,1.88345251,2714.8,2712.6,0.55]
[1748493976403,1.89881432,2714.7,2712.5,1.1864]
[1748493976703,1.82265085,2714.1,2712.5,1.1864]
[1748493976873,3.68599832,2713.0,2712.5,1.1864]
[1748493977074,1.82265085,2714.3,2712.5,1.1864]
[1748493977275,1.82265085,2714.3,2711.7,0.55]
[1748493977276,3.68725911,2712.1,2711.7,1.1864]
[1748493977573,3.6868743,2712.4,2711.7,1.1864]
[1748493977777,3.68527731,2713.5,2711.7,4.87403107]
[1748493977987,5.55604529,2714.5,2711.7,4.87403107]
[1748493977988,1.2789,2714.3,2711.9,3.68736152]
[1748493978299,3.68451809,2714.1,2711.9,0.48737615]
[1748493978508,1.82265085,2714.2,2711.8,18.0]
[1748493978711,5.50771936,2713.7,2711.7,1.1864]
[1748493978919,3.68473414,2713.9,2711.7,1.1864]
[1748493979203,3.68446262,2714.1,2711.9,8.0]
[1748493979509,3.68459837,2714.0,2711.9,15.965]
[1748493979663,3.68639416,2712.7,2711.9,7.965]
[1748493979860,3.68675899,2712.5,2711.9,7.965]
[1748493980164,3.6867516,2712.5,2712.0,8.0]
[1748493980364,3.68615672,2712.9,2712.0,8.0]
[1748493980601,1.82265085,2713.9,2711.9,7.965]
[1748493980906,8.0,2714.2,2711.9,7.965]
[1748493980907,11.68436913,2714.2,2711.9,7.965]
[1748493981090,1.2789,2714.3,2712.0,8.0]
[1748493981403,3.6848002,2713.9,2712.5,8.0]
[1748493981559,3.68515866,2713.6,2712.8,8.0]
[1748493981760,3.68515866,2713.6,2712.2,8.0]
[1748493981761,1.1753,2715.0,2712.9,1.2849]
[1748493982389,3.6859565,2713.0,2712.9,1.2849]
[1748493983802,3.68487165,2713.8,2711.9,7.965]
[1748493983803,3.68704372,2712.2,2712.1,1.2565]
[1748493984809,3.68622825,2712.8,2712.1,1.2565]
[1748493985116,1.8321771,2716.0,2712.1,1.2565]
[1748493985117,1.1713,2716.1,2712.5,1.82265085]
[1748493985297,1.1713,2716.6,2713.7,1.2649]
[1748493985463,1.1713,2716.6,2713.1,10.0]
[1748493985464,1.1713,2716.6,2714.2,1.2649]
[1748493985898,1.82265085,2715.8,2714.2,1.2649]
[1748493986109,3.68194985,2716.0,2714.2,1.2649]
[1748493986110,3.68239601,2715.7,2714.2,1.2649]
[1748493986267,7.372,2716.1,2714.2,1.2649]
[1748493986268,1.82265085,2716.1,2714.2,1.2649]
[1748493986463,5.504476,2716.1,2714.2,1.2649]
[1748493986705,1.82265085,2716.1,2714.2,1.2649]
[1748493986933,5.46795255,2716.8,2714.2,1.2649]
[1748493986934,1.2508,2717.2,2714.8,0.55]
[1748493987224,3.68062744,2717.0,2715.3,3.68272335]
[1748493987364,1.2508,2717.2,2714.9,1.2284]
[1748493987561,1.2508,2717.2,2715.0,8.55]
[1748493987809,1.2508,2717.2,2714.9,1.2284]
[1748493987810,50.0,2717.1,2714.9,1.2284]
[1748493988006,7.369,2717.1,2715.3,8.0]
[1748493988211,1.82265085,2717.5,2715.4,1.2284]
[1748493988377,3.68066343,2717.0,2715.4,1.2284]
[1748493988583,1.2508,2717.9,2715.4,1.2284]
[1748493988584,0.3177994,2717.8,2715.9,8.0]
[1748493988795,1.2508,2717.9,2715.4,1.2284]
[1748493988998,1.82265085,2717.8,2715.5,3.68254606]
[1748493989202,3.68054628,2717.0,2715.4,1.2284]
[1748493989518,3.68073771,2716.9,2715.4,1.2284]
[1748493989742,1.82265085,2717.3,2714.8,10.0]
[1748493990042,1.82265085,2717.3,2715.0,10.0]
[1748493990181,1.82265085,2717.3,2715.4,3.68258677]
[1748493990380,1.82265085,2717.3,2714.6,0.514]
[1748493990593,3.68096575,2716.7,2715.2,3.68285085]
[1748493990818,3.68084417,2716.8,2714.8,10.0]
[1748493991024,3.68111247,2716.6,2714.7,3.68364828]
[1748493991190,3.68098103,2716.7,2715.1,3.68303365]
[1748493991391,3.68019022,2717.3,2714.6,7.369]
[1748493991595,8.0,2717.5,2715.1,3.68297798]
[1748493991596,3.68117325,2716.6,2715.1,3.68297798]
[1748493991894,3.6808829,2716.8,2715.2,3.68296056]
[1748493991895,3.68122881,2716.5,2715.2,3.68296056]
[1748493992094,3.68046719,2717.1,2715.2,3.68296056]
[1748493992095,1.228,2718.1,2715.8,1.82265085]
[1748493992298,1.228,2718.1,2714.9,1.80531553]
[1748493992299,0.39310199,2716.8,2715.9,0.03680299]
[1748493992511,0.39310199,2716.8,2716.7,3.68093643]
[1748493992732,0.39310199,2716.8,2716.7,4.83923643]
[1748493994522,0.39310199,2716.8,2716.7,1.1583]
[1748493994733,0.39310199,2716.8,2715.3,3.68280824]
[1748493994734,0.39310199,2716.8,2715.4,8.0]
[1748493994927,0.39310199,2716.8,2716.7,3.68093643]
[1748493996635,0.39310199,2716.8,2715.9,3.68202069]
[1748493996844,0.39310199,2716.8,2716.7,3.68093643]
[1748493997166,0.39310199,2716.8,2715.6,3.68231218]
[1748493997310,0.39310199,2716.8,2715.4,3.68268338]
[1748493997311,0.39310199,2716.8,2715.7,4.19616393]
[1748493997509,0.39310199,2716.8,2715.5,7.95]
[1748493997510,0.39310199,2716.8,2715.5,11.63251272]
[1748493997712,0.39310199,2716.8,2715.6,1.1978]
[1748493997939,0.39310199,2716.8,2716.7,3.68093643]
[1748493998146,3.67940501,2717.9,2717.0,3.68047817]
[1748493998348,3.67940501,2717.9,2716.6,1.1978]
[1748493998349,3.67915254,2718.1,2716.7,3.68080281]
[1748493998550,3.04528601,2718.3,2716.7,3.68080281]
[1748493998551,3.67898846,2718.2,2717.2,3.68014993]
[1748493998749,1.2406,2718.3,2717.1,3.68027863]
[1748493998953,3.67898658,2718.2,2717.2,3.68025909]
[1748493999117,0.39310484,2717.8,2717.3,3.68004966]
[1748493999448,0.39310484,2717.8,2717.2,3.68017382]
[1748493999746,0.39310484,2717.8,2717.4,3.67995909]
[1748493999947,0.39310484,2717.8,2717.3,3.68010954]
[1748494000152,0.39310484,2717.8,2716.6,1.1978]
[1748494000657,0.39310484,2717.8,2716.6,4.87884603]
[1748494000658,3.67978462,2717.6,2716.6,4.87884603]
[1748494000948,0.30613384,2717.7,2716.6,4.87884603]
[1748494000949,0.30613384,2717.5,2716.9,3.68064339]
[1748494001133,0.30613384,2717.5,2716.7,3.68093643]
[1748494001336,0.30613384,2717.5,2716.9,3.68055086]
[1748494001676,0.39310484,2717.8,2716.8,3.68075137]
[1748494001833,0.39310484,2717.8,2716.0,9.1308]
[1748494001834,0.39310484,2717.8,2716.9,1.2208]
[1748494002037,0.39310484,2717.8,2716.9,9.2208]
[1748494002333,0.39310484,2717.8,2716.5,3.68120743]
[1748494002535,0.39310484,2717.8,2717.4,3.67985557]
[1748494002740,0.39310484,2717.8,2716.4,8.5808]
[1748494002946,0.39310484,2717.8,2717.7,3.67958199]
[1748494005014,0.39310484,2717.8,2717.0,4.94458748]
[1748494005239,0.39310484,2717.8,2717.7,3.67958199]
[1748494007345,0.39310484,2717.8,2717.2,8.0]
[1748494007554,0.39310484,2717.8,2717.7,3.67958199]
[1748494008370,0.39310484,2717.8,2716.5,9.0896]
[1748494008524,0.39310484,2717.8,2717.7,3.67958199]
[1748494010136,0.39310484,2717.8,2716.8,3.68070583]
[1748494010349,0.39310484,2717.8,2716.7,8.0]
[1748494010548,0.39310484,2717.8,2717.5,3.67973409]
[1748494010755,0.39310484,2717.8,2716.6,11.68107192]
[1748494011074,0.39310484,2717.8,2717.5,3.67982887]
[1748494011225,0.39310484,2717.8,2716.8,3.68071802]
[1748494011425,0.39310484,2717.8,2717.4,3.67987802]
[1748494011623,0.39310484,2717.8,2717.4,3.6799586]
[1748494011869,0.39310484,2717.8,2717.4,3.67995906]
[1748494012070,0.39310484,2717.8,2717.0,8.0]
[1748494012272,0.39310484,2717.8,2717.3,3.68002836]
[1748494012569,1.2095,2717.7,2717.1,3.68027906]
[1748494012774,3.67971739,2717.6,2716.0,1.2792]
[1748494013150,1.2095,2717.7,2716.0,1.2792]
[1748494013151,1.2095,2717.7,2716.3,3.68147848]
[1748494013496,4.88908576,2717.7,2717.0,3.68046764]
[1748494013634,1.2095,2717.7,2717.4,3.67989838]
[1748494013843,1.2095,2717.7,2717.2,3.68015592]
[1748494014036,1.2399,2718.2,2717.1,3.68026904]
[1748494014232,4.91880641,2718.2,2717.1,3.68026904]
[1748494014472,1.2399,2718.2,2717.7,3.67954082]
[1748494014835,1.2399,2718.2,2717.8,3.67943215]
[1748494015034,1.2399,2718.2,2717.1,3.68039453]
[1748494015257,0.39310484,2718.1,2717.7,3.67953517]
[1748494015680,0.39310484,2718.1,2717.5,3.67985214]
[1748494015837,0.39310484,2718.1,2718.0,3.67917586]
[1748494016353,0.39310484,2718.1,2717.4,3.67989993]
[1748494016549,0.39310484,2718.1,2717.5,3.67980715]
[1748494016764,0.39310484,2718.1,2718.0,3.67917586]
[1748494018386,0.39310484,2718.1,2718.0,4.98817586]
[1748494018764,0.39310484,2718.1,2718.0,12.98817586]
[1748494020660,0.32956106,2718.1,2718.0,12.98817586]
[1748494020860,0.32956106,2718.1,2718.0,20.32517586]